bitfinex/quotes_SOLUSD_20250308
["timestamp","ask_amount","ask_price","bid_price","bid_amount"]
[1741462367966,80.1,138.75,138.73,0.033]
[1741462368854,101.39052198,138.75,138.73,0.033]
[1741462369059,80.1,138.75,138.73,0.033]
[1741462370662,101.39052198,138.75,138.73,0.033]
[1741462371965,80.1,138.75,138.73,0.033]
[1741462372958,161.4,138.75,138.73,0.033]
[1741462376769,182.69052198,138.75,138.73,0.033]
[1741462377860,182.72052198,138.75,138.73,0.033]
[1741462378265,21.29052198,138.74,138.73,0.033]
[1741462379358,13.66986319,138.74,138.73,0.033]
[1741462381661,93.79986319,138.75,138.73,0.033]
[1741462382663,13.66986319,138.74,138.73,0.033]
[1741462384171,93.79986319,138.75,138.73,0.033]
[1741462384476,13.66986319,138.74,138.73,0.033]
[1741462384990,19.43596319,138.74,138.73,0.033]
[1741462385876,13.66986319,138.74,138.73,0.033]
[1741462387170,80.55541595,138.74,138.73,0.033]
[1741462387564,25.87596319,138.74,138.73,0.033]
[1741462387775,80.55541595,138.74,138.73,0.033]
[1741462388377,25.87596319,138.74,138.73,0.033]
[1741462389655,111.12888254,138.74,138.73,0.0001]
[1741462390359,105.30576481,138.74,138.73,0.0001]
[1741462393687,81.2669,138.72,138.69,0.033]
[1741462393890,13.66986319,138.7,138.69,0.033]
[1741462394474,82.31951205,138.7,138.69,0.033]
[1741462394666,81.267,138.67,138.63,0.033]
[1741462394867,33.66986319,138.65,138.63,0.033]
[1741462395082,13.66986319,138.65,138.63,0.033]
[1741462395281,20.0,138.66,138.63,0.033]
[1741462395467,80.0,138.68,138.63,0.033]
[1741462395662,21.37848382,138.67,138.63,27.18188382]
[1741462396370,21.37848382,138.67,138.63,21.41148382]
[1741462396569,21.37848382,138.67,138.63,0.033]
[1741462396792,21.37848382,138.66,138.63,0.033]
[1741462397092,21.37848382,138.65,138.63,0.033]
[1741462397881,77.14838382,138.65,138.63,0.033]
[1741462402795,71.37848382,138.65,138.63,0.033]
[1741462402982,21.37848382,138.66,138.63,0.033]
[1741462403483,107.86848382,138.67,138.63,0.033]
[1741462403686,86.49,138.67,138.63,0.033]
[1741462404081,21.37848382,138.66,138.63,0.033]
[1741462406478,107.86848382,138.67,138.63,0.033]
[1741462406679,86.49,138.67,138.63,21.41148382]
[1741462406879,80.03,138.67,138.64,21.41148382]
[1741462407491,0.03,138.67,138.66,21.37848382]
[1741462407712,0.03,138.67,138.66,23.00918382]
[1741462408108,0.03,138.67,138.66,28.77868382]
[1741462408817,0.03,138.67,138.66,7.4002]
[1741462409518,0.03,138.67,138.66,1.6307]
[1741462411219,0.03,138.67,138.66,7.4002]
[1741462411522,0.03,138.67,138.66,28.77868382]
[1741462412107,0.03,138.67,138.64,21.41148382]
[1741462412313,0.03,138.67,138.64,0.033]
[1741462412507,0.03,138.67,138.64,27.18168382]
[1741462412721,0.03,138.67,138.65,21.37848382]
[1741462413429,0.03,138.67,138.66,21.37848382]
[1741462413610,0.03,138.67,138.66,27.14798382]
[1741462415930,0.0001,138.67,138.66,27.14798382]
[1741462416118,0.0001,138.67,138.66,68.8099165]
[1741462416503,81.3,138.74,138.69,20.0]
[1741462416705,81.3,138.74,138.71,21.37848382]
[1741462417116,81.3,138.74,138.7,41.37848382]
[1741462417720,81.3,138.74,138.7,21.37848382]
[1741462418031,81.3,138.74,138.69,21.37848382]
[1741462418807,21.37848382,138.72,138.67,33.64738382]
[1741462419008,21.37848382,138.73,138.68,21.37848382]
[1741462419227,81.3,138.72,138.68,21.37848382]
[1741462419433,102.67848382,138.72,138.67,33.64738382]
[1741462419732,102.67848382,138.72,138.7,20.0]
[1741462419915,102.67848382,138.72,138.67,33.64738382]
[1741462420328,81.3,138.72,138.68,21.37848382]
[1741462420708,81.3,138.72,138.7,21.37848382]
[1741462421431,81.33,138.75,138.71,29.25668382]
[1741462421633,0.03,138.75,138.74,21.37848382]
[1741462421844,0.03,138.75,138.71,7.8782]
[1741462421845,0.03,138.75,138.71,29.25668382]
[1741462422133,0.03,138.75,138.73,21.37848382]
[1741462422916,0.03,138.75,138.72,21.37848382]
[1741462423318,21.40848382,138.75,138.7,21.37848382]
[1741462423717,0.03,138.75,138.7,27.14618382]
[1741462423927,0.03,138.75,138.72,21.37848382]
[1741462424126,0.03,138.75,138.71,5.7673]
[1741462424127,0.03,138.75,138.73,21.37848382]
[1741462424336,0.03,138.75,138.74,21.37848382]
[1741462425326,0.03,138.75,138.74,53.67243268]
[1741462426331,0.03,138.75,138.74,1.6523]
[1741462426526,0.03,138.75,138.74,28.79688382]
[1741462426733,0.03,138.75,138.74,1.6523]
[1741462426916,0.03,138.75,138.73,21.37848382]
[1741462427851,0.03,138.75,138.72,21.37848382]
[1741462428024,0.03,138.75,138.71,33.37168382]
[1741462428713,0.03,138.75,138.7,1.6523]
[1741462428942,0.03,138.75,138.72,21.37848382]
[1741462429622,0.03,138.75,138.73,21.37848382]
[1741462429828,0.03,138.75,138.74,21.37848382]
[1741462430824,0.03,138.75,138.74,61.4066165]
[1741462431142,0.03,138.75,138.74,40.02813268]
[1741462431530,0.03,138.75,138.74,61.4066165]
[1741462431727,0.03,138.75,138.74,54.04653268]
[1741462432849,0.03,138.75,138.74,28.79688382]
[1741462433143,0.03,138.75,138.72,27.14538382]
[1741462433356,0.03,138.75,138.7,28.79828382]
[1741462433927,21.40848382,138.75,138.7,28.79828382]
[1741462434127,81.3,138.74,138.7,23.03078382]
[1741462434326,81.3,138.74,138.7,28.79848382]
[1741462435641,21.37848382,138.73,138.68,33.74698382]
[1741462436121,102.67848382,138.74,138.68,33.74698382]
[1741462436528,102.67848382,138.74,138.68,12.3685]
[1741462436529,21.37848382,138.73,138.68,12.3685]
[1741462436732,102.67848382,138.74,138.69,21.37848382]
[1741462437028,81.3,138.74,138.7,21.37848382]
[1741462437445,81.3,138.74,138.71,21.37848382]
[1741462437636,81.3,138.74,138.72,5.767]
[1741462438144,81.3,138.74,138.71,5.7673]
[1741462440045,81.3,138.74,138.71,27.14578382]
[1741462440249,81.3,138.74,138.72,21.37848382]
[1741462440466,81.3,138.74,138.71,27.14578382]
[1741462440826,81.3,138.74,138.71,5.7673]
[1741462441247,81.3,138.74,138.71,27.14578382]
[1741462442646,81.3,138.74,138.7,27.14618382]
[1741462442970,102.67848382,138.74,138.68,27.14668382]
[1741462443664,81.3,138.74,138.7,21.37848382]
[1741462444152,81.3,138.74,138.73,21.37848382]
[1741462444339,0.03,138.75,138.72,21.37848382]
[1741462444538,0.03,138.75,138.72,27.14528382]
[1741462445165,0.03,138.75,138.71,41.37848382]
[1741462445844,21.37848382,138.74,138.68,27.14708382]
[1741462446051,102.67848382,138.73,138.68,27.14708382]
[1741462446445,81.3,138.73,138.68,27.14708382]
[1741462446746,108.44508382,138.73,138.68,21.37848382]
[1741462446945,102.67848382,138.73,138.68,21.37848382]
[1741462448531,81.3,138.72,138.67,21.37848382]
[1741462448747,108.44558382,138.72,138.66,27.18078382]
[1741462448954,108.44558382,138.72,138.66,27.18088382]
[1741462449166,81.3,138.71,138.66,27.18088382]
[1741462449467,81.3,138.7,138.67,21.37848382]
[1741462449978,81.3,138.7,138.68,21.37848382]
[1741462451569,81.3,138.7,138.68,5.7686]
[1741462452964,81.3,138.7,138.67,27.14738382]
[1741462453149,81.3,138.7,138.66,0.033]
[1741462453560,81.3,138.7,138.66,21.41148382]
[1741462454835,102.67848382,138.7,138.66,0.033]
[1741462455337,108.44638382,138.7,138.66,0.033]
[1741462456959,81.3,138.7,138.66,21.41148382]
[1741462458366,81.3,138.7,138.69,21.37848382]
[1741462458664,81.3,138.72,138.69,21.37848382]
[1741462458963,81.3,138.72,138.69,27.14638382]
[1741462460144,81.3,138.72,138.69,5.7679]
[1741462460967,81.3,138.72,138.67,21.37848382]
[1741462462067,81.3,138.72,138.68,21.37848382]
[1741462462894,81.33,138.72,138.68,21.37848382]
[1741462463202,81.33,138.72,138.69,21.37848382]
[1741462463979,81.33,138.72,138.68,27.14678382]
[1741462465370,81.33,138.72,138.69,21.37848382]
[1741462465578,0.03,138.72,138.69,21.37848382]
[1741462466075,0.03,138.72,138.71,21.37848382]
[1741462467572,0.03,138.72,138.71,27.14588382]
[1741462468171,0.03,138.72,138.71,45.79553268]
[1741462468473,0.03,138.72,138.71,27.14588382]
[1741462470081,0.03,138.72,138.71,45.79553268]
[1741462471172,0.03,138.75,138.71,45.79553268]
[1741462471375,0.03,138.75,138.74,40.02813268]
[1741462471968,0.0001,138.75,138.74,62.9793165]
[1741462472855,0.03,138.8,138.77,20.0]
[1741462473069,0.03,138.8,138.79,21.37848382]
[1741462473375,0.03,138.8,138.78,21.37848382]
[1741462473568,0.03,138.8,138.78,5.7644]
[1741462473870,0.03,138.8,138.77,33.72328382]
[1741462474073,0.03,138.8,138.78,41.37848382]
[1741462474245,0.03,138.8,138.79,21.37848382]
[1741462475566,0.03,138.8,138.79,27.14258382]
[1741462477870,0.03,138.8,138.79,5.7641]
[1741462478075,0.03,138.8,138.78,27.14288382]
[1741462478276,0.03,138.8,138.79,21.37848382]
[1741462478875,0.03,138.8,138.77,27.95848382]
[1741462479177,0.03,138.8,138.77,12.3448]
[1741462479360,0.03,138.8,138.77,33.72328382]
[1741462479561,0.03,138.8,138.77,27.14328382]
[1741462480063,0.03,138.8,138.77,5.7648]
[1741462480262,0.03,138.8,138.78,21.37848382]
[1741462480461,0.03,138.8,138.77,27.14328382]
[1741462482201,21.40848382,138.8,138.75,21.37848382]
[1741462482980,0.03,138.8,138.76,21.37848382]
[1741462483401,0.03,138.8,138.76,27.14358382]
[1741462483687,0.03,138.8,138.77,21.37848382]
[1741462484282,0.03,138.8,138.79,21.37848382]
[1741462485491,0.03,138.8,138.79,27.14258382]
[1741462486479,0.03,138.8,138.79,45.79223268]
[1741462487309,0.03,138.8,138.79,5.7641]
[1741462487614,0.03,138.8,138.79,27.14258382]
[1741462487901,0.03,138.8,138.78,33.74278382]
[1741462488404,0.03,138.8,138.79,21.37848382]
[1741462489479,0.03,138.8,138.79,27.14258382]
[1741462489781,0.03,138.8,138.79,45.79223268]
[1741462491378,0.03,138.8,138.79,38.05685931]
[1741462491579,0.03,138.81,138.79,38.05685931]
[1741462491796,0.03,138.81,138.8,13.64311045]
[1741462492095,0.03,138.85,138.8,32.29275931]
[1741462492396,0.03,138.85,138.83,13.64311045]
[1741462492784,0.03,138.85,138.84,13.64311045]
[1741462493409,0.03,138.85,138.84,21.30988651]
[1741462493587,0.03,138.85,138.83,21.30988651]
[1741462494605,0.03,138.85,138.84,21.30988651]
[1741462494903,0.03,138.85,138.81,20.1713]
[1741462495103,0.03,138.85,138.84,21.30988651]
[1741462495486,10.0283185,138.89,138.84,21.30988651]
[1741462495699,10.0283185,138.89,138.84,27.07158651]
[1741462497099,87.0585,138.93,138.88,21.30988651]
[1741462497312,108.36838651,138.93,138.87,21.30988651]
[1741462497603,21.30988651,138.9,138.85,21.30988651]
[1741462498301,21.33988651,138.91,138.86,21.30988651]
[1741462498492,27.09898651,138.91,138.86,21.30988651]
[1741462498889,21.30988651,138.89,138.84,27.07158651]
[1741462499296,21.30988651,138.89,138.84,5.7617]
[1741462499487,27.06988651,138.89,138.83,33.69218651]
[1741462499691,21.30988651,138.89,138.84,21.30988651]
[1741462500087,27.06978651,138.89,138.84,21.30988651]
[1741462500923,21.30988651,138.87,138.82,21.30988651]
[1741462501105,21.30988651,138.85,138.8,21.30988651]
[1741462501404,21.30988651,138.84,138.79,45.72363537]
[1741462501798,21.30988651,138.84,138.79,24.41374886]
[1741462501985,21.30988651,138.84,138.79,45.72363537]
[1741462502381,21.30988651,138.85,138.8,21.30988651]
[1741462503212,21.30988651,138.85,138.8,27.07338651]
[1741462503590,21.30988651,138.86,138.8,27.07338651]
[1741462503790,81.3,138.87,138.82,21.30988651]
[1741462503791,102.60988651,138.87,138.82,21.30988651]
[1741462503998,21.30988651,138.85,138.8,21.30988651]
[1741462504199,21.30988651,138.84,138.79,27.07378651]
[1741462504597,21.30988651,138.83,138.78,27.92988651]
[1741462504882,21.30988651,138.82,138.78,6.62]
[1741462506810,28.65008651,138.83,138.78,27.92988651]
[1741462507007,21.30988651,138.82,138.77,21.30988651]
[1741462507213,21.30988651,138.81,138.76,27.07518651]
[1741462507412,21.30988651,138.79,138.75,0.033]
[1741462507716,21.30988651,138.78,138.75,0.033]
[1741462508318,21.30988651,138.76,138.75,0.033]
[1741462508991,21.30988651,138.79,138.75,0.033]
[1741462509892,21.30988651,138.78,138.75,0.033]
[1741462511525,21.30988651,138.79,138.75,0.033]
[1741462511720,87.9,138.8,138.75,0.033]
[1741462511721,41.30988651,138.77,138.75,0.033]
[1741462512210,21.30988651,138.79,138.75,0.033]
[1741462513416,21.30988651,138.78,138.75,0.033]
[1741462515717,21.30988651,138.77,138.75,0.033]
[1741462516098,21.30988651,138.78,138.75,0.033]
[1741462517014,81.3,138.79,138.75,21.34288651]
[1741462517396,102.60988651,138.79,138.75,0.033]
[1741462517614,102.60988651,138.79,138.75,5.7985]
[1741462517815,102.60988651,138.79,138.75,0.033]
[1741462518002,21.30988651,138.77,138.75,0.033]
[1741462518898,81.3,138.78,138.75,0.033]
[1741462519098,81.3,138.78,138.75,5.7986]
[1741462519300,81.3,138.78,138.75,0.033]
[1741462519499,94.95898757,138.78,138.75,0.033]
[1741462520313,81.3,138.78,138.75,0.033]
[1741462520902,94.95898757,138.8,138.75,13.69198757]
[1741462521330,81.3,138.8,138.75,13.69198757]
[1741462521506,81.3,138.8,138.76,5.7653]
[1741462522026,81.3,138.8,138.76,19.42428757]
[1741462522616,13.65898757,138.79,138.75,5.7986]
[1741462523238,94.95898757,138.8,138.75,19.45758757]
[1741462524643,13.65898757,138.78,138.75,0.033]
[1741462525719,19.42348757,138.78,138.75,0.033]
[1741462525936,94.95898757,138.77,138.75,0.033]
[1741462526134,13.65898757,138.76,138.75,0.033]
[1741462527323,21.34997523,138.76,138.75,0.033]
[1741462528824,27.11527523,138.76,138.75,0.033]
[1741462529951,108.41527523,138.76,138.75,0.033]
[1741462530448,45.76492409,138.76,138.75,0.033]
[1741462531224,27.11527523,138.76,138.75,0.033]
[1741462532035,64.7131,138.79,138.75,0.033]
[1741462532369,80.0,138.78,138.75,21.38297523]
[1741462532864,80.0,138.78,138.75,0.033]
[1741462533227,80.0,138.78,138.75,21.38297523]
[1741462533665,21.34997523,138.81,138.75,21.38297523]
[1741462533960,21.34997523,138.8,138.75,21.38297523]
[1741462534447,50.0,138.85,138.78,21.34997523]
[1741462534448,85.7616,138.85,138.78,21.34997523]
[1741462534631,108.41237523,138.83,138.78,21.34997523]
[1741462534950,108.41237523,138.83,138.77,21.34997523]
[1741462535251,21.34997523,138.82,138.77,21.34997523]
[1741462536032,87.0625,138.83,138.75,27.96297523]
[1741462536033,21.34997523,138.8,138.75,27.96297523]
[1741462536955,21.34997523,138.81,138.76,21.34997523]
[1741462537132,161.3,138.82,138.77,21.34997523]
[1741462537339,161.3,138.82,138.79,21.34997523]
[1741462537867,81.3,138.82,138.79,21.34997523]
[1741462538026,81.3,138.85,138.81,21.34997523]
[1741462538351,102.64997523,138.87,138.82,21.34997523]
[1741462538852,81.3,138.87,138.82,21.34997523]
[1741462539150,81.3,138.87,138.82,27.11267523]
[1741462539663,81.3,138.87,138.83,21.34997523]
[1741462540244,21.34997523,138.86,138.81,21.34997523]
[1741462540638,81.3,138.87,138.83,21.34997523]
[1741462540952,21.34997523,138.88,138.83,27.11217523]
[1741462541464,21.34997523,138.88,138.83,21.34997523]
[1741462541866,21.34997523,138.87,138.82,21.34997523]
[1741462542045,21.34997523,138.87,138.81,24.41284886]
[1741462542252,21.34997523,138.87,138.82,21.34997523]
[1741462542654,27.11037523,138.88,138.83,21.34997523]
[1741462542960,21.34997523,138.88,138.83,21.34997523]
[1741462543372,21.34997523,138.88,138.83,27.11217523]
[1741462543573,27.11027523,138.88,138.83,27.11217523]
[1741462543741,21.34997523,138.88,138.83,27.11217523]
[1741462544857,27.13997523,138.89,138.83,27.11217523]
[1741462545266,21.34997523,138.88,138.82,5.7627]
[1741462545460,21.34997523,138.88,138.83,21.34997523]
[1741462545648,21.34997523,138.88,138.82,21.34997523]
[1741462545848,21.34997523,138.87,138.82,21.34997523]
[1741462546273,21.34997523,138.88,138.82,27.11267523]
[1741462546449,21.34997523,138.88,138.83,21.34997523]
[1741462546861,21.34997523,138.86,138.8,27.94997523]
[1741462547076,21.34997523,138.86,138.8,33.71337523]
[1741462547255,21.34997523,138.86,138.81,21.34997523]
[1741462547456,5.7603,138.88,138.81,21.34997523]
[1741462547457,21.34997523,138.87,138.81,21.34997523]
[1741462547769,21.34997523,138.87,138.82,21.34997523]
[1741462547949,21.34997523,138.86,138.81,21.34997523]
[1741462548756,21.34997523,138.85,138.8,21.34997523]
[1741462548939,27.11187523,138.85,138.79,21.34997523]
[1741462549441,81.3,138.87,138.83,21.34997523]
[1741462549669,101.37997523,138.89,138.84,21.34997523]
[1741462550052,107.14007523,138.89,138.84,21.34997523]
[1741462550946,107.14007523,138.89,138.84,27.11197523]
[1741462551245,107.14007523,138.89,138.83,21.34997523]
[1741462551657,21.34997523,138.88,138.82,21.34997523]
[1741462551970,21.34997523,138.87,138.82,21.34997523]
[1741462553365,27.11077523,138.87,138.82,21.34997523]
[1741462553867,80.03,138.89,138.83,21.34997523]
[1741462554067,21.34997523,138.87,138.82,27.11267523]
[1741462558077,102.64997523,138.88,138.83,21.34997523]
[1741462559082,102.64997523,138.88,138.8,20.1726]
[1741462559268,94.9402856,138.88,138.83,13.6402856]
[1741462559656,94.9402856,138.88,138.8,20.1726]
[1741462559868,94.9402856,138.88,138.83,13.6402856]
[1741462560476,94.9402856,138.88,138.82,13.6402856]
[1741462560666,13.6402856,138.86,138.81,13.6402856]
[1741462561364,21.32061455,138.86,138.79,5.7637]
[1741462561567,102.62061455,138.86,138.81,21.32061455]
[1741462561778,102.62061455,138.86,138.81,27.08381455]
[1741462562588,81.3,138.86,138.83,21.32061455]
[1741462562760,110.58231455,138.88,138.83,21.32061455]
[1741462563066,89.2617,138.88,138.83,21.32061455]
[1741462563269,89.2617,138.88,138.84,21.32061455]
[1741462563491,81.3,138.88,138.84,21.32061455]
[1741462564178,81.3,138.88,138.84,27.08241455]
[1741462564770,81.3,138.88,138.83,21.32061455]
[1741462564969,102.62061455,138.88,138.83,27.08291455]
[1741462565284,21.32061455,138.86,138.81,21.32061455]
[1741462566064,80.03,138.89,138.81,21.32061455]
[1741462566065,102.62061455,138.87,138.82,21.32061455]
[1741462566282,81.3,138.87,138.83,21.32061455]
[1741462566869,21.32061455,138.86,138.81,41.32061455]
[1741462567082,102.62061455,138.86,138.81,21.32061455]
[1741462567472,81.3,138.86,138.81,27.08371455]
[1741462567665,81.3,138.86,138.82,21.32061455]
[1741462567866,81.3,138.86,138.83,21.32061455]
[1741462568171,81.3,138.86,138.84,5.762]
[1741462568377,102.62061455,138.88,138.83,27.08291455]
[1741462569079,102.62061455,138.88,138.82,21.32061455]
[1741462569281,21.32061455,138.87,138.81,41.32061455]
[1741462569475,102.62061455,138.86,138.81,21.32061455]
[1741462569676,21.32061455,138.84,138.78,1.5675]
[1741462569868,82.8644,138.86,138.76,14.4127]
[1741462569869,21.32061455,138.83,138.79,20.0]
[1741462570070,21.32061455,138.83,138.78,21.32061455]
[1741462570564,27.08321455,138.83,138.78,21.32061455]
[1741462570764,108.38271455,138.84,138.79,21.32061455]
[1741462571361,102.62061455,138.84,138.79,21.32061455]
[1741462571562,81.3,138.84,138.8,21.32061455]
[1741462571977,81.3,138.84,138.81,0.033]
[1741462572664,6.52,138.85,138.81,0.033]
[1741462573389,21.32061455,138.87,138.82,21.32061455]
[1741462573690,81.3,138.87,138.82,21.32061455]
[1741462573989,81.3,138.87,138.83,21.32061455]
[1741462574375,81.3,138.87,138.83,27.08261455]
[1741462575688,81.3,138.87,138.83,21.32061455]
[1741462576276,81.3,138.87,138.85,21.32061455]
[1741462576475,0.03,138.89,138.86,27.08171455]
[1741462576668,0.03,138.89,138.87,21.32061455]
[1741462577588,0.03,138.89,138.86,27.08171455]
[1741462577786,0.03,138.89,138.85,21.32061455]
[1741462577987,21.32061455,138.88,138.83,21.32061455]
[1741462578174,102.62061455,138.88,138.83,21.32061455]
[1741462578379,102.62061455,138.88,138.83,27.08281455]
[1741462578783,108.38091455,138.88,138.83,21.32061455]
[1741462578964,108.38091455,138.88,138.82,21.32061455]
[1741462579168,108.38091455,138.88,138.81,7.3686]
[1741462579169,21.32061455,138.86,138.81,0.033]
[1741462579368,21.32061455,138.86,138.81,21.35361455]
[1741462579565,102.62061455,138.87,138.81,21.35361455]
[1741462580184,21.32061455,138.85,138.81,0.033]
[1741462580487,108.38271455,138.84,138.81,0.033]
[1741462581173,81.3,138.84,138.81,0.033]
[1741462581376,81.3,138.84,138.81,21.35361455]
[1741462581882,81.3,138.84,138.81,0.033]
[1741462581883,102.62061455,138.84,138.81,0.033]
[1741462582080,81.3,138.84,138.81,0.033]
[1741462582270,81.3,138.84,138.81,21.35361455]
[1741462582471,81.3,138.84,138.81,0.033]
[1741462583481,87.062,138.84,138.81,0.033]
[1741462583682,21.32061455,138.83,138.81,0.033]
[1741462584780,108.38261455,138.84,138.81,0.033]
[1741462585179,102.62061455,138.84,138.81,0.033]
[1741462585996,21.32061455,138.83,138.81,0.033]
[1741462586193,81.3,138.82,138.81,0.033]
[1741462586396,102.62061455,138.82,138.81,0.033]
[1741462586692,28.64141455,138.82,138.81,0.033]
[1741462588994,34.78551455,138.82,138.81,0.033]
[1741462589191,29.02271455,138.82,138.81,0.033]
[1741462589783,34.78551455,138.82,138.81,0.033]
[1741462591780,13.4649,138.82,138.81,0.033]
[1741462591981,34.78551455,138.82,138.81,0.033]
[1741462592196,1.558,138.82,138.81,0.033]
[1741462592397,28.64141455,138.82,138.81,0.033]
[1741462592780,22.87861455,138.82,138.81,0.033]
[1741462592981,21.32061455,138.82,138.81,0.033]
[1741462593210,92.3625,138.83,138.81,0.033]
[1741462593376,21.32061455,138.82,138.81,0.033]
[1741462593700,80.0,138.83,138.81,0.033]
[1741462593701,101.32061455,138.83,138.81,0.033]
[1741462594084,80.0,138.83,138.81,0.033]
[1741462594901,81.3,138.85,138.81,21.35361455]
[1741462595406,21.32061455,138.84,138.81,0.033]
[1741462595580,108.38221455,138.85,138.81,0.033]
[1741462596179,87.0616,138.85,138.81,0.033]
[1741462596586,108.38221455,138.85,138.81,0.033]
[1741462596904,21.32061455,138.84,138.81,0.033]
[1741462597108,21.32061455,138.82,138.81,0.033]
[1741462597307,102.62061455,138.82,138.81,0.033]
[1741462597511,81.3,138.82,138.81,0.033]
[1741462599994,21.32061455,138.86,138.81,21.35361455]
[1741462600308,102.62061455,138.86,138.81,21.35361455]
[1741462600506,81.3,138.86,138.83,21.32061455]
[1741462603088,0.03,138.89,138.85,21.32061455]
[1741462603910,5.79,138.89,138.84,21.32061455]
[1741462604111,0.03,138.89,138.85,21.32061455]
[1741462604608,21.32061455,138.88,138.83,1.6586]
[1741462604809,21.32061455,138.88,138.83,22.97921455]
[1741462605015,0.03,138.89,138.83,22.97921455]
[1741462605016,0.03,138.89,138.84,21.32061455]
[1741462605218,0.03,138.89,138.85,21.32061455]
[1741462605402,21.35061455,138.89,138.84,21.32061455]
[1741462605598,21.32061455,138.88,138.83,22.97921455]
[1741462606310,21.32061455,138.88,138.83,28.74151455]
[1741462606514,21.35061455,138.89,138.84,21.32061455]
[1741462606833,27.11061455,138.89,138.84,21.32061455]
[1741462606995,0.03,138.89,138.85,21.32061455]
[1741462607625,0.03,138.89,138.88,21.32061455]
[1741462608729,0.03,138.89,138.85,5.7616]
[1741462609100,0.03,138.89,138.88,21.32061455]
[1741462609301,0.03,138.89,138.85,20.1656]
[1741462609512,0.03,138.89,138.88,21.32061455]
[1741462609829,0.03,138.89,138.88,81.29087796]
[1741462610025,0.03,138.91,138.9,38.64964886]
[1741462610026,0.0001,138.91,138.9,38.64964886]
[1741462610198,0.0001,138.91,138.9,59.97026341]
[1741462610637,0.0001,138.91,138.9,47.08011455]
[1741462610810,0.0001,138.91,138.9,20.0]
[1741462611425,0.0001,138.91,138.9,41.32061455]
[1741462611727,0.0001,138.91,138.9,20.0]
[1741462612024,0.0001,138.91,138.88,22.97921455]
[1741462612247,0.0001,138.91,138.88,21.32061455]
[1741462612440,0.0001,138.91,138.87,21.32061455]
[1741462614112,0.0001,138.91,138.86,6.66]
[1741462614313,0.0001,138.91,138.86,27.98061455]
[1741462615136,0.0001,138.91,138.87,21.32061455]
[1741462615514,21.32071455,138.91,138.86,27.98061455]
[1741462615732,102.62071455,138.91,138.85,21.32061455]
[1741462615908,21.32061455,138.9,138.85,21.32061455]
[1741462616113,21.32061455,138.9,138.86,20.0]
[1741462617932,21.32061455,138.9,138.85,21.32061455]
[1741462618624,81.3001,138.91,138.86,21.32061455]
[1741462618825,81.3001,138.91,138.87,21.32061455]
[1741462619741,0.03,138.9,138.87,21.32061455]
[1741462620335,0.03,138.9,138.88,21.32061455]
[1741462620541,0.03,138.9,138.87,21.32061455]
[1741462620711,0.03,138.9,138.86,21.32061455]
[1741462621316,0.03,138.9,138.84,5.762]
[1741462621522,21.32061455,138.89,138.84,5.762]
[1741462621733,0.03,138.9,138.87,21.32061455]
[1741462621936,0.03,138.9,138.89,21.32061455]
[1741462623825,0.03,138.9,138.89,27.08051455]
[1741462624029,0.03,138.9,138.87,21.32061455]
[1741462624331,0.03,138.9,138.86,21.32061455]
[1741462625455,0.03,138.9,138.86,27.08171455]
[1741462625646,0.03,138.9,138.87,21.32061455]
[1741462626322,0.03,138.9,138.89,21.32061455]
[1741462627453,0.03,138.9,138.89,27.08051455]
[1741462629259,0.0001,138.91,138.89,27.08051455]
[1741462629458,0.0001,138.91,138.9,22.93591455]
[1741462629660,0.0001,138.91,138.9,41.58556341]
[1741462631139,0.0001,138.91,138.9,47.34506341]
[1741462633176,0.0001,138.94,138.93,20.0]
[1741462633461,0.0001,138.94,138.93,41.32061455]
[1741462633642,0.0001,138.94,138.93,59.97026341]
[1741462635268,0.0001,138.94,138.93,87.04907796]
[1741462635648,0.0001,138.94,138.93,65.72846341]
[1741462636765,0.0001,138.94,138.93,87.04907796]